[Event "*** MasterClass Titled Tuesday Blitz"]
[Site "Chess.com"]
[Date "2017.08.01"]
[Round "2"]
[White "michaelq2d5"]
[Black "Fablibi"]
[Result "1-0"]
[WhiteElo "2601"]
[BlackElo "2492"]
[TimeControl "180+2"]
[EndTime "13:23:41 PDT"]
[Termination "michaelq2d5 won by resignation"]

1. d4 {[%clk 0:03:01.9]} 1... Nf6 {[%clk 0:03:00.5]} 2. c4 {[%clk 0:03:02.4]}
2... g6 {[%clk 0:03:00.9]} 3. Nc3 {[%clk 0:03:03.3]} 3... Bg7 {[%clk 0:02:58.9]}
4. e4 {[%clk 0:03:04.1]} 4... d6 {[%clk 0:02:59.3]} 5. Nf3 {[%clk 0:03:05.2]}
5... O-O {[%clk 0:02:59.8]} 6. Be2 {[%clk 0:03:06.4]} 6... Nbd7 {[%clk
0:03:00.6]} 7. Be3 {[%clk 0:03:06.8]} 7... e5 {[%clk 0:03:00.8]} 8. d5 {[%clk
0:03:07.8]} 8... Ng4 {[%clk 0:03:01.6]} 9. Bg5 {[%clk 0:03:08.4]} 9... f6 {[%clk
0:03:02.9]} 10. Bh4 {[%clk 0:03:09.6]} 10... a5 {[%clk 0:03:03.6]} 11. Nd2
{[%clk 0:03:09]} 11... Nh6 {[%clk 0:03:03.6]} 12. a3 {[%clk 0:03:08.3]} 12...
Nf7 {[%clk 0:03:00.4]} 13. f3 {[%clk 0:03:08]} 13... Bh6 {[%clk 0:02:58.7]} 14.
Bf2 {[%clk 0:03:09]} 14... f5 {[%clk 0:02:58.8]} 15. O-O {[%clk 0:03:05.2]}
15... Nf6 {[%clk 0:02:56.8]} 16. c5 {[%clk 0:03:03.2]} 16... Nh5 {[%clk
0:02:54.5]} 17. g3 {[%clk 0:03:00.9]} 17... fxe4 {[%clk 0:02:48.6]} 18. Ndxe4
{[%clk 0:02:59.8]} 18... Bh3 {[%clk 0:02:48.5]} 19. Re1 {[%clk 0:02:59.9]} 19...
Ng5 {[%clk 0:02:46.8]} 20. Nxg5 {[%clk 0:02:59.1]} 20... Qxg5 {[%clk 0:02:44.5]}
21. Ne4 {[%clk 0:02:59.8]} 21... Qe7 {[%clk 0:02:44.8]} 22. Qb3 {[%clk
0:02:56.9]} 22... Rab8 {[%clk 0:02:18.4]} 23. cxd6 {[%clk 0:02:38.9]} 23... cxd6
{[%clk 0:02:19.1]} 24. Qb6 {[%clk 0:02:40.4]} 24... Rbd8 {[%clk 0:02:12.3]} 25.
Qxa5 {[%clk 0:02:36]} 25... Nf6 {[%clk 0:02:12.4]} 26. Bf1 {[%clk 0:01:46.8]}
26... Bc8 {[%clk 0:01:13.9]} 27. Be3 {[%clk 0:01:22.4]} 27... Bxe3+ {[%clk
0:01:11]} 28. Rxe3 {[%clk 0:01:23.1]} 28... Nxe4 {[%clk 0:01:12.1]} 29. fxe4
{[%clk 0:01:23.4]} 29... Qf6 {[%clk 0:01:08.8]} 30. Qd2 {[%clk 0:01:23.9]} 30...
Rf7 {[%clk 0:01:10.2]} 31. Bg2 {[%clk 0:01:22.3]} 31... Qg5 {[%clk 0:01:05.9]}
32. Rf1 {[%clk 0:01:20]} 32... Rxf1+ {[%clk 0:01:05.5]} 33. Bxf1 {[%clk
0:01:20.7]} 33... Rf8 {[%clk 0:01:07.2]} 34. Bg2 {[%clk 0:01:12.4]} 34... h5
{[%clk 0:01:07.8]} 35. Re2 {[%clk 0:01:11.6]} 35... Qf6 {[%clk 0:00:53]} 36. Rf2
{[%clk 0:01:11.3]} 36... Qxf2+ {[%clk 0:00:53.3]} 37. Qxf2 {[%clk 0:01:11.8]}
37... Rxf2 {[%clk 0:00:55.2]} 38. Kxf2 {[%clk 0:01:13.2]} 38... Kf7 {[%clk
0:00:54.1]} 39. Ke3 {[%clk 0:01:12.1]} 39... Ke7 {[%clk 0:00:53.8]} 40. Bf1
{[%clk 0:01:13.2]} 40... g5 {[%clk 0:00:52.5]} 41. a4 {[%clk 0:01:12.6]} 41...
Kd8 {[%clk 0:00:52.9]} 42. a5 {[%clk 0:01:12]} 42... Kc7 {[%clk 0:00:53]} 43. b4
{[%clk 0:01:11.5]} 43... g4 {[%clk 0:00:54.2]} 44. Bb5 {[%clk 0:01:10.8]} 44...
Bd7 {[%clk 0:00:22.8]} 45. Bxd7 {[%clk 0:01:01.2]} 45... Kxd7 {[%clk 0:00:24.7]}
46. b5 {[%clk 0:01:01.9]} 46... Kc7 {[%clk 0:00:25.8]} 47. b6+ {[%clk
0:01:03.1]} 47... Kc8 {[%clk 0:00:26.5]} 48. Kd3 {[%clk 0:01:04.2]} 48... Kb8
{[%clk 0:00:27.8]} 49. Kc3 {[%clk 0:01:05.4]} 49... Ka8 {[%clk 0:00:20.2]} 50.
Kb4 {[%clk 0:01:06.1]} 50... Kb8 {[%clk 0:00:21.1]} 51. Kb5 {[%clk 0:01:07.4]}
51... Ka8 {[%clk 0:00:22.3]} 52. a6 {[%clk 0:01:08.6]} 52... Kb8 {[%clk
0:00:23.8]} 53. axb7 {[%clk 0:01:04.3]} 53... Kxb7 {[%clk 0:00:25.1]} 54. Ka5
{[%clk 0:01:05.4]} 54... Kb8 {[%clk 0:00:25.8]} 55. Ka6 {[%clk 0:01:06.4]} 55...
Ka8 {[%clk 0:00:27]} 56. b7+ {[%clk 0:01:07.5]} 56... Kb8 {[%clk 0:00:28.9]} 57.
Kb6 {[%clk 0:01:08.5]} 57... h4 {[%clk 0:00:30.3]} 58. Kc6 {[%clk 0:01:09.2]}
1-0

[Event "*** MasterClass Titled Tuesday Blitz"]
[Site "Chess.com"]
[Date "2017.08.01"]
[Round "2"]
[White "nekochabo"]
[Black "maciek_92"]
[Result "0-1"]
[WhiteElo "2503"]
[BlackElo "2512"]
[TimeControl "180+2"]
[EndTime "13:23:43 PDT"]
[Termination "maciek_92 won by resignation"]

1. Nf3 {[%clk 0:03:01.9]} 1... Nf6 {[%clk 0:02:59.5]} 2. g3 {[%clk 0:03:03]}
2... b6 {[%clk 0:03:00.3]} 3. Bg2 {[%clk 0:03:04.2]} 3... Bb7 {[%clk 0:03:01.9]}
4. O-O {[%clk 0:03:05.9]} 4... e6 {[%clk 0:03:03.2]} 5. c4 {[%clk 0:03:07.3]}
5... d5 {[%clk 0:03:04.3]} 6. b3 {[%clk 0:03:08.2]} 6... Bd6 {[%clk 0:03:01.7]}
7. Bb2 {[%clk 0:03:09.1]} 7... O-O {[%clk 0:03:03.4]} 8. Nc3 {[%clk 0:03:07.9]}
8... Nbd7 {[%clk 0:03:04.2]} 9. e3 {[%clk 0:03:08.5]} 9... a6 {[%clk 0:03:01.4]}
10. d4 {[%clk 0:03:03.3]} 10... Qe7 {[%clk 0:03:00.9]} 11. a3 {[%clk 0:03:00.7]}
11... c5 {[%clk 0:02:51.1]} 12. cxd5 {[%clk 0:03:00.1]} 12... exd5 {[%clk
0:02:50.4]} 13. Nh4 {[%clk 0:03:01.1]} 13... Qe6 {[%clk 0:02:47.8]} 14. Re1
{[%clk 0:02:58.4]} 14... Rfe8 {[%clk 0:02:47.3]} 15. Rc1 {[%clk 0:02:54.8]}
15... Rac8 {[%clk 0:02:37.1]} 16. Ne2 {[%clk 0:02:43.6]} 16... g5 {[%clk
0:02:32]} 17. Nf3 {[%clk 0:02:44.2]} 17... Ne4 {[%clk 0:02:26.4]} 18. dxc5
{[%clk 0:02:22.9]} 18... bxc5 {[%clk 0:02:28.3]} 19. Qd3 {[%clk 0:02:12.4]}
19... Rcd8 {[%clk 0:02:19]} 20. Nc3 {[%clk 0:02:04.4]} 20... Ndf6 {[%clk
0:02:10.9]} 21. Nd2 {[%clk 0:02:00.1]} 21... c4 {[%clk 0:02:06.4]} 22. Qe2
{[%clk 0:01:37.4]} 22... Nxd2 {[%clk 0:01:40.9]} 23. Qxd2 {[%clk 0:01:39.3]}
23... cxb3 {[%clk 0:01:42.2]} 24. e4 {[%clk 0:01:34.2]} 24... Nxe4 {[%clk
0:01:33]} 25. Nxe4 {[%clk 0:01:07.6]} 25... dxe4 {[%clk 0:01:33.9]} 26. Qxg5+
{[%clk 0:01:04.5]} 26... Qg6 {[%clk 0:01:33.2]} 27. Qe3 {[%clk 0:01:05.4]} 27...
Bd5 {[%clk 0:01:15.4]} 28. Red1 {[%clk 0:00:42.4]} 28... Be5 {[%clk 0:01:08.5]}
29. Bxe5 {[%clk 0:00:27.5]} 29... Rxe5 {[%clk 0:01:09.5]} 30. Rc5 {[%clk
0:00:16]} 30... Qf6 {[%clk 0:01:04.5]} 31. h4 {[%clk 0:00:15.2]} 31... Rd6
{[%clk 0:00:54.6]} 32. Kh2 {[%clk 0:00:12.9]} 32... Kg7 {[%clk 0:00:46.2]} 33.
Bh3 {[%clk 0:00:12.7]} 33... h6 {[%clk 0:00:41.6]} 34. a4 {[%clk 0:00:12.9]}
34... b2 {[%clk 0:00:34.3]} 35. Rb1 {[%clk 0:00:11.1]} 35... Be6 {[%clk
0:00:27]} 36. Bg2 {[%clk 0:00:11.3]} 36... Rxc5 {[%clk 0:00:26.4]} 37. Qxc5
{[%clk 0:00:13.2]} 37... Rd2 {[%clk 0:00:27.7]} 38. Kg1 {[%clk 0:00:11.8]} 38...
Ba2 {[%clk 0:00:24.8]} 39. Re1 {[%clk 0:00:04.6]} 39... b1=Q {[%clk 0:00:25.2]}
40. Rxb1 {[%clk 0:00:06]} 40... Bxb1 {[%clk 0:00:27.1]} 41. Qc1 {[%clk 0:00:07]}
41... Qxf2+ {[%clk 0:00:25.7]} 0-1

[Event "*** MasterClass Titled Tuesday Blitz"]
[Site "Chess.com"]
[Date "2017.08.01"]
[Round "2"]
[White "Blitzking4444"]
[Black "Grootneus"]
[Result "0-1"]
[WhiteElo "2142"]
[BlackElo "2051"]
[TimeControl "180+2"]
[EndTime "13:23:52 PDT"]
[Termination "Grootneus won by resignation"]

1. e4 {[%clk 0:03:01.9]} 1... c5 {[%clk 0:02:57.4]} 2. Nf3 {[%clk 0:03:02.1]}
2... Nc6 {[%clk 0:02:59]} 3. Bb5 {[%clk 0:03:02.6]} 3... Nf6 {[%clk 0:03:00.1]}
4. Nc3 {[%clk 0:03:01.3]} 4... Qc7 {[%clk 0:03:00.4]} 5. O-O {[%clk 0:02:57.6]}
5... Nd4 {[%clk 0:03:01.6]} 6. d3 {[%clk 0:02:47.5]} 6... a6 {[%clk 0:02:49.4]}
7. Bc4 {[%clk 0:02:29.6]} 7... e6 {[%clk 0:02:09.5]} 8. a4 {[%clk 0:02:20.6]}
8... Ng4 {[%clk 0:02:03.8]} 9. g3 {[%clk 0:02:08.8]} 9... Nxf3+ {[%clk
0:02:03.5]} 10. Qxf3 {[%clk 0:02:07.1]} 10... Ne5 {[%clk 0:02:05.1]} 11. Qf4
{[%clk 0:02:05]} 11... Bd6 {[%clk 0:01:52.7]} 12. Qe3 {[%clk 0:01:57.3]} 12...
Nxc4 {[%clk 0:01:47]} 13. dxc4 {[%clk 0:01:59.2]} 13... Be5 {[%clk 0:01:48.6]}
14. Ne2 {[%clk 0:01:52.5]} 14... d6 {[%clk 0:01:38.4]} 15. Qd3 {[%clk
0:01:22.9]} 15... O-O {[%clk 0:01:32.7]} 16. c3 {[%clk 0:01:20.6]} 16... Bd7
{[%clk 0:01:31.8]} 17. f4 {[%clk 0:00:55.1]} 17... Bf6 {[%clk 0:01:32.4]} 18.
Be3 {[%clk 0:00:56.5]} 18... Bc6 {[%clk 0:01:32.8]} 19. Rfd1 {[%clk 0:00:56.2]}
19... Rad8 {[%clk 0:01:26]} 20. g4 {[%clk 0:00:57.3]} 20... h6 {[%clk
0:01:09.2]} 21. a5 {[%clk 0:00:58.6]} 21... b6 {[%clk 0:00:50.7]} 22. axb6
{[%clk 0:00:54.9]} 22... Qxb6 {[%clk 0:00:52.6]} 23. b4 {[%clk 0:00:56.5]} 23...
Qb7 {[%clk 0:00:52.1]} 24. Ng3 {[%clk 0:00:39.9]} 24... cxb4 {[%clk 0:00:51.7]}
25. Rab1 {[%clk 0:00:21.7]} 25... Bxc3 {[%clk 0:00:40.5]} 26. Bd2 {[%clk
0:00:21.1]} 26... Bxd2 {[%clk 0:00:39]} 27. Rxd2 {[%clk 0:00:23]} 27... a5
{[%clk 0:00:39.9]} 28. g5 {[%clk 0:00:24.4]} 28... hxg5 {[%clk 0:00:33.6]} 29.
fxg5 {[%clk 0:00:26.3]} 29... d5 {[%clk 0:00:26.1]} 30. exd5 {[%clk 0:00:15.2]}
30... exd5 {[%clk 0:00:27.1]} 31. c5 {[%clk 0:00:15.3]} 31... d4 {[%clk
0:00:17.8]} 32. Re1 {[%clk 0:00:15.1]} 32... Qb5 {[%clk 0:00:18.2]} 33. Qf5
{[%clk 0:00:10.8]} 33... Rd5 {[%clk 0:00:16.3]} 34. Qh3 {[%clk 0:00:11.9]} 34...
Qxc5 {[%clk 0:00:14.3]} 35. g6 {[%clk 0:00:05.6]} 35... d3+ {[%clk 0:00:08.4]}
36. Kf1 {[%clk 0:00:05.5]} 36... Bd7 {[%clk 0:00:09.4]} 37. gxf7+ {[%clk
0:00:05.5]} 37... Rxf7+ {[%clk 0:00:10.6]} 38. Nf5 {[%clk 0:00:06.9]} 38...
Rfxf5+ {[%clk 0:00:10.2]} 39. Rf2 {[%clk 0:00:08.2]} 39... Rxf2+ {[%clk
0:00:11.2]} 40. Kg1 {[%clk 0:00:08.8]} 40... Bxh3 {[%clk 0:00:11.8]} 0-1

[Event "*** MasterClass Titled Tuesday Blitz"]
[Site "Chess.com"]
[Date "2017.08.01"]
[Round "2"]
[White "nihalsarin"]
[Black "IvaVidenova"]
[Result "0-1"]
[WhiteElo "2623"]
[BlackElo "2477"]
[TimeControl "180+2"]
[EndTime "13:24:04 PDT"]
[Termination "IvaVidenova won by resignation"]

1. c4 {[%clk 0:03:01.9]} 1... Nf6 {[%clk 0:02:59.1]} 2. g3 {[%clk 0:03:01.7]}
2... g6 {[%clk 0:03:00.3]} 3. Bg2 {[%clk 0:03:02.5]} 3... Bg7 {[%clk 0:03:01.8]}
4. Nc3 {[%clk 0:03:04.2]} 4... O-O {[%clk 0:03:03.2]} 5. d3 {[%clk 0:03:05.6]}
5... d6 {[%clk 0:03:04.6]} 6. Nf3 {[%clk 0:03:05.8]} 6... c5 {[%clk 0:03:04.7]}
7. O-O {[%clk 0:03:06.7]} 7... Nc6 {[%clk 0:03:06]} 8. Rb1 {[%clk 0:03:08]} 8...
h6 {[%clk 0:03:03.2]} 9. a3 {[%clk 0:03:09.1]} 9... Kh7 {[%clk 0:03:02.4]} 10.
b4 {[%clk 0:03:09.6]} 10... Ne8 {[%clk 0:02:56.6]} 11. Bd2 {[%clk 0:03:05.3]}
11... Nd4 {[%clk 0:02:57.2]} 12. bxc5 {[%clk 0:03:02.1]} 12... dxc5 {[%clk
0:02:56.1]} 13. Nxd4 {[%clk 0:03:01.3]} 13... cxd4 {[%clk 0:02:57.4]} 14. Nd5
{[%clk 0:03:02.4]} 14... Rb8 {[%clk 0:02:52]} 15. Qa4 {[%clk 0:02:58.6]} 15...
a6 {[%clk 0:02:45.7]} 16. Ba5 {[%clk 0:02:55.1]} 16... Qd6 {[%clk 0:02:46.1]}
17. Bb4 {[%clk 0:02:54.9]} 17... Qe6 {[%clk 0:02:39.2]} 18. Bxe7 {[%clk
0:02:53.3]} 18... Rg8 {[%clk 0:02:40.3]} 19. Bf3 {[%clk 0:02:53.6]} 19... Bd7
{[%clk 0:02:35.7]} 20. Qa5 {[%clk 0:02:51.7]} 20... Bc6 {[%clk 0:02:36.3]} 21.
Rb6 {[%clk 0:02:37.3]} 21... g5 {[%clk 0:02:27.9]} 22. Rfb1 {[%clk 0:02:33.7]}
22... Nd6 {[%clk 0:02:25.1]} 23. Qc5 {[%clk 0:01:55.6]} 23... Nf5 {[%clk
0:02:13.2]} 24. Be4 {[%clk 0:01:52.2]} 24... Kh8 {[%clk 0:02:12.9]} 25. Bxf5
{[%clk 0:00:36.6]} 25... Qxf5 {[%clk 0:02:14.8]} 26. Qd6 {[%clk 0:00:37.3]}
26... Rbe8 {[%clk 0:01:18.3]} 27. R1b2 {[%clk 0:00:19.6]} 27... Qe6 {[%clk
0:00:55.7]} 28. Qc5 {[%clk 0:00:08.9]} 28... f5 {[%clk 0:00:42.3]} 29. Bd6
{[%clk 0:00:09.7]} 29... Rd8 {[%clk 0:00:34.3]} 30. Bc7 {[%clk 0:00:10.5]} 30...
Rd7 {[%clk 0:00:34.2]} 31. R6b4 {[%clk 0:00:11.2]} 31... f4 {[%clk 0:00:32]} 32.
Ba5 {[%clk 0:00:10.9]} 32... fxg3 {[%clk 0:00:31.8]} 33. hxg3 {[%clk 0:00:11.3]}
33... Bf8 {[%clk 0:00:29.4]} 34. Qb6 {[%clk 0:00:11.5]} 34... Bxb4 {[%clk
0:00:29.8]} 35. Qxd4+ {[%clk 0:00:12.5]} 35... Kh7 {[%clk 0:00:28.3]} 36. Bxb4
{[%clk 0:00:14.2]} 36... Bxd5 {[%clk 0:00:27.6]} 37. cxd5 {[%clk 0:00:15.4]}
37... Qxd5 {[%clk 0:00:28.8]} 38. Qxd5 {[%clk 0:00:15.3]} 38... Rxd5 {[%clk
0:00:30.7]} 39. Bc3 {[%clk 0:00:16.8]} 39... Rb5 {[%clk 0:00:31.5]} 40. Rxb5
{[%clk 0:00:16.8]} 40... axb5 {[%clk 0:00:33.4]} 41. e4 {[%clk 0:00:18.2]} 41...
Rc8 {[%clk 0:00:34.3]} 42. Bb4 {[%clk 0:00:18.9]} 42... Rc1+ {[%clk 0:00:34.5]}
43. Kg2 {[%clk 0:00:19.4]} 43... Rd1 {[%clk 0:00:36.4]} 44. e5 {[%clk
0:00:19.7]} 44... Rxd3 {[%clk 0:00:37.4]} 45. f4 {[%clk 0:00:21.6]} 45... g4
{[%clk 0:00:37.2]} 46. Kf2 {[%clk 0:00:22.4]} 46... Rf3+ {[%clk 0:00:36.8]} 47.
Ke2 {[%clk 0:00:23.1]} 47... Kg6 {[%clk 0:00:38.3]} 48. Be1 {[%clk 0:00:23]}
48... Kf5 {[%clk 0:00:39.4]} 49. Bf2 {[%clk 0:00:22.6]} 49... Rxa3 {[%clk
0:00:39.4]} 0-1

[Event "*** MasterClass Titled Tuesday Blitz"]
[Site "Chess.com"]
[Date "2017.08.01"]
[Round "2"]
[White "Keranke"]
[Black "Aygehovit1992"]
[Result "0-1"]
[WhiteElo "2648"]
[BlackElo "2460"]
[TimeControl "180+2"]
[EndTime "13:24:17 PDT"]
[Termination "Aygehovit1992 won by resignation"]

1. d4 {[%clk 0:03:01.9]} 1... Nf6 {[%clk 0:03:00.5]} 2. Nf3 {[%clk 0:03:02.7]}
2... g6 {[%clk 0:03:01.9]} 3. Bf4 {[%clk 0:03:03.5]} 3... Bg7 {[%clk 0:03:03.5]}
4. h3 {[%clk 0:03:05.1]} 4... O-O {[%clk 0:03:05.2]} 5. e3 {[%clk 0:03:06.7]}
5... d6 {[%clk 0:03:06.9]} 6. Nbd2 {[%clk 0:03:08]} 6... b6 {[%clk 0:03:08]} 7.
a4 {[%clk 0:03:08.3]} 7... Bb7 {[%clk 0:03:09.6]} 8. a5 {[%clk 0:03:09.8]} 8...
bxa5 {[%clk 0:03:10.9]} 9. Nc4 {[%clk 0:03:07.9]} 9... Nc6 {[%clk 0:03:10.2]}
10. Be2 {[%clk 0:03:05]} 10... Nd5 {[%clk 0:03:10.8]} 11. Bh2 {[%clk 0:03:04.4]}
11... Nb6 {[%clk 0:02:52.6]} 12. Nxa5 {[%clk 0:03:04.7]} 12... Nxa5 {[%clk
0:02:53.4]} 13. Rxa5 {[%clk 0:03:06.6]} 13... c5 {[%clk 0:02:51.2]} 14. O-O
{[%clk 0:02:56.5]} 14... cxd4 {[%clk 0:02:46.4]} 15. exd4 {[%clk 0:02:58.4]}
15... Qc7 {[%clk 0:02:47.1]} 16. c3 {[%clk 0:02:53]} 16... Nc4 {[%clk
0:02:39.9]} 17. Ra2 {[%clk 0:02:53.5]} 17... a5 {[%clk 0:02:40.3]} 18. Nd2
{[%clk 0:02:37.3]} 18... Nxd2 {[%clk 0:02:25.2]} 19. Qxd2 {[%clk 0:02:39.2]}
19... Bd5 {[%clk 0:02:23.8]} 20. c4 {[%clk 0:02:31.8]} 20... Be4 {[%clk
0:02:21.9]} 21. Rfa1 {[%clk 0:02:28.3]} 21... Rfb8 {[%clk 0:02:18.6]} 22. Bg3
{[%clk 0:02:21.5]} 22... h5 {[%clk 0:02:00.2]} 23. Bh4 {[%clk 0:02:14.5]} 23...
e5 {[%clk 0:01:54.5]} 24. d5 {[%clk 0:02:02]} 24... Bf5 {[%clk 0:01:46.1]} 25.
Rxa5 {[%clk 0:01:43.1]} 25... Rxa5 {[%clk 0:01:34.1]} 26. Rxa5 {[%clk 0:01:45]}
26... Rxb2 {[%clk 0:01:23.6]} 27. Ra8+ {[%clk 0:01:25.9]} 27... Rb8 {[%clk
0:01:23.6]} 28. Ra6 {[%clk 0:01:23.2]} 28... Kh7 {[%clk 0:00:45.7]} 29. Rc6
{[%clk 0:01:20.4]} 29... Qd7 {[%clk 0:00:43.2]} 30. Kh2 {[%clk 0:01:16.6]} 30...
e4 {[%clk 0:00:31]} 31. Bg3 {[%clk 0:01:16.4]} 31... Rb2 {[%clk 0:00:31.6]} 32.
Qd1 {[%clk 0:01:08.6]} 32... e3 {[%clk 0:00:24.6]} 33. fxe3 {[%clk 0:00:59.8]}
33... Qe7 {[%clk 0:00:20.1]} 34. Bf3 {[%clk 0:00:34]} 34... Be5 {[%clk
0:00:14.7]} 35. Qe1 {[%clk 0:00:16.3]} 35... h4 {[%clk 0:00:15.6]} 36. Bxe5
{[%clk 0:00:17.4]} 36... Qxe5+ {[%clk 0:00:16.6]} 37. Kg1 {[%clk 0:00:17.8]}
37... g5 {[%clk 0:00:10.8]} 38. e4 {[%clk 0:00:16.5]} 38... Bxh3 {[%clk
0:00:11.1]} 39. Rc7 {[%clk 0:00:13.1]} 39... Kg6 {[%clk 0:00:10.3]} 40. c5
{[%clk 0:00:13.9]} 40... Bxg2 {[%clk 0:00:10.9]} 41. Bxg2 {[%clk 0:00:10.7]}
41... h3 {[%clk 0:00:12.3]} 42. Bf3 {[%clk 0:00:07.8]} 42... Qh2+ {[%clk
0:00:11.6]} 43. Kf1 {[%clk 0:00:09.4]} 43... Rg2 {[%clk 0:00:09.4]} 44. Bh5+
{[%clk 0:00:05.7]} 44... Kxh5 {[%clk 0:00:09.5]} 45. Qd1+ {[%clk 0:00:07.4]}
45... Kh6 {[%clk 0:00:09.8]} 0-1

[Event "*** MasterClass Titled Tuesday Blitz"]
[Site "Chess.com"]
[Date "2017.08.01"]
[Round "2"]
[White "Bryakin_Mikhail"]
[Black "HaryKane"]
[Result "1-0"]
[WhiteElo "2531"]
[BlackElo "2270"]
[TimeControl "180+2"]
[EndTime "13:24:17 PDT"]
[Termination "Bryakin_Mikhail won by resignation"]

1. d4 {[%clk 0:02:50.3]} 1... e6 {[%clk 0:02:58.9]} 2. c4 {[%clk 0:02:51.5]}
2... Nf6 {[%clk 0:02:59.6]} 3. Nf3 {[%clk 0:02:51.4]} 3... c5 {[%clk 0:03:00.7]}
4. g3 {[%clk 0:02:44.3]} 4... cxd4 {[%clk 0:03:00.1]} 5. Nxd4 {[%clk 0:02:46.2]}
5... d5 {[%clk 0:03:00]} 6. Bg2 {[%clk 0:02:46.2]} 6... Bb4+ {[%clk 0:02:40.7]}
7. Bd2 {[%clk 0:02:44.6]} 7... Bxd2+ {[%clk 0:02:31]} 8. Nxd2 {[%clk 0:02:46.5]}
8... O-O {[%clk 0:02:25.1]} 9. O-O {[%clk 0:02:37.7]} 9... e5 {[%clk 0:02:26]}
10. N4f3 {[%clk 0:02:35.6]} 10... Nc6 {[%clk 0:02:24.2]} 11. cxd5 {[%clk
0:02:29.3]} 11... Nxd5 {[%clk 0:02:24.2]} 12. Nc4 {[%clk 0:02:30.1]} 12... Re8
{[%clk 0:02:12.9]} 13. Nfxe5 {[%clk 0:02:23.4]} 13... Nxe5 {[%clk 0:02:05.3]}
14. Qxd5 {[%clk 0:02:06.3]} 14... Nxc4 {[%clk 0:01:51.1]} 15. Qxc4 {[%clk
0:02:02.8]} 15... Qb6 {[%clk 0:01:52.1]} 16. b3 {[%clk 0:01:53.3]} 16... Be6
{[%clk 0:01:49.8]} 17. Qh4 {[%clk 0:01:45.9]} 17... Rad8 {[%clk 0:01:43.3]} 18.
Be4 {[%clk 0:01:43.9]} 18... h6 {[%clk 0:01:39.3]} 19. Bd3 {[%clk 0:01:43.4]}
19... Bd5 {[%clk 0:01:32.1]} 20. Rac1 {[%clk 0:01:37.2]} 20... Qd6 {[%clk
0:01:25.7]} 21. Qd4 {[%clk 0:01:31.8]} 21... Qe6 {[%clk 0:01:18.5]} 22. Qxa7
{[%clk 0:01:15.7]} 22... Qh3 {[%clk 0:01:07.7]} 23. f3 {[%clk 0:01:16.7]} 23...
h5 {[%clk 0:00:51.5]} 24. Qa4 {[%clk 0:00:52]} 24... g5 {[%clk 0:00:37.2]} 25.
Qb4 {[%clk 0:00:24.1]} 25... g4 {[%clk 0:00:23.8]} 26. Be4 {[%clk 0:00:17.8]}
26... h4 {[%clk 0:00:21.3]} 27. Bxd5 {[%clk 0:00:10.2]} 27... Rxd5 {[%clk
0:00:17.5]} 28. Qxg4+ {[%clk 0:00:11.2]} 28... Qxg4 {[%clk 0:00:18.4]} 29. fxg4
{[%clk 0:00:13.1]} 29... Rxe2 {[%clk 0:00:17.5]} 30. Rf2 {[%clk 0:00:11.5]}
30... Rxf2 {[%clk 0:00:17.4]} 31. Kxf2 {[%clk 0:00:13.4]} 31... Rd2+ {[%clk
0:00:18.6]} 32. Kf3 {[%clk 0:00:14.8]} 32... hxg3 {[%clk 0:00:19.1]} 33. Kxg3
{[%clk 0:00:15.4]} 33... Rxa2 {[%clk 0:00:19.7]} 34. Rc7 {[%clk 0:00:16.2]}
34... b5 {[%clk 0:00:20.5]} 35. Rb7 {[%clk 0:00:16.9]} 35... Ra5 {[%clk
0:00:20.3]} 36. h4 {[%clk 0:00:16.4]} 36... Kg7 {[%clk 0:00:20.8]} 37. Kf4
{[%clk 0:00:17.6]} 37... Kg6 {[%clk 0:00:20.5]} 38. b4 {[%clk 0:00:18.8]} 38...
Ra1 {[%clk 0:00:21.1]} 39. Rxb5 {[%clk 0:00:19.5]} 39... Rf1+ {[%clk 0:00:22.1]}
40. Kg3 {[%clk 0:00:20.9]} 40... Rb1 {[%clk 0:00:23]} 41. Rb6+ {[%clk
0:00:21.4]} 41... Kg7 {[%clk 0:00:24.2]} 42. h5 {[%clk 0:00:22.4]} 42... Kh7
{[%clk 0:00:24.4]} 43. Kh4 {[%clk 0:00:23.6]} 43... Kg7 {[%clk 0:00:26.3]} 44.
Kg5 {[%clk 0:00:25.1]} 44... f6+ {[%clk 0:00:26.3]} 45. Rxf6 {[%clk 0:00:20.8]}
45... Rxb4 {[%clk 0:00:26.6]} 46. h6+ {[%clk 0:00:22.3]} 46... Kh7 {[%clk
0:00:26.8]} 47. Rf7+ {[%clk 0:00:23.5]} 47... Kh8 {[%clk 0:00:28.2]} 48. Ra7
{[%clk 0:00:25.4]} 48... Rb6 {[%clk 0:00:28.7]} 49. Kh5 {[%clk 0:00:25.8]} 49...
Rc6 {[%clk 0:00:29.6]} 50. g5 {[%clk 0:00:26.7]} 50... Rb6 {[%clk 0:00:30.9]}
51. Ra8+ {[%clk 0:00:24.5]} 51... Kh7 {[%clk 0:00:31.1]} 52. g6+ {[%clk
0:00:25.7]} 52... Rxg6 {[%clk 0:00:32.2]} 53. Ra7+ {[%clk 0:00:27]} 53... Rg7
{[%clk 0:00:32.7]} 54. Rxg7+ {[%clk 0:00:27.8]} 1-0